bitfinex-derivatives/quotes_BTCF0:USTF0_20250527
["timestamp","ask_amount","ask_price","bid_price","bid_amount"]
[1748358259553,0.10363692,109170.0,109160.0,2.13624988]
[1748358259857,0.10363692,109170.0,109160.0,2.26285328]
[1748358260156,0.10363692,109170.0,109160.0,2.19216947]
[1748358261955,0.10363692,109170.0,109160.0,2.16938584]
[1748358262352,0.10363692,109170.0,109160.0,2.16937713]
[1748358262550,0.10363692,109170.0,109160.0,2.12486442]
[1748358263364,0.10363692,109170.0,109160.0,2.1693776]
[1748358263655,0.10363692,109170.0,109160.0,2.03326043]
[1748358263960,0.10363692,109170.0,109160.0,2.02801021]
[1748358264458,0.10363692,109170.0,109160.0,1.58497021]
[1748358264665,0.10363692,109170.0,109160.0,2.02785021]
[1748358265753,0.10363692,109170.0,109160.0,2.02787501]
[1748358265953,0.19489692,109170.0,109160.0,0.46617001]
[1748358266160,0.3608,109130.0,109090.0,0.17822693]
[1748358266358,0.41434382,109100.0,109090.0,0.17822693]
[1748358266558,0.76918784,109100.0,109090.0,0.25619281]
[1748358266763,1.12918784,109100.0,109090.0,0.09170541]
[1748358266961,0.93092682,109100.0,109090.0,0.07796588]
[1748358267154,0.93092682,109100.0,109090.0,0.19636588]
[1748358267349,0.1374536,109090.0,109070.0,0.30450422]
[1748358267563,0.9048795,109080.0,109070.0,0.33210224]
[1748358267755,1.47597742,109080.0,109070.0,0.01462203]
[1748358267961,1.2448795,109080.0,109070.0,0.07469759]
[1748358268163,1.2448795,109080.0,109070.0,0.08775659]
[1748358268365,1.48234863,109080.0,109070.0,0.01462203]
[1748358268549,1.48234863,109080.0,109070.0,0.0009]
[1748358269064,1.48234863,109080.0,109070.0,0.01410955]
[1748358269360,1.94206863,109080.0,109070.0,0.0019]
[1748358269560,1.64404863,109080.0,109070.0,0.01508794]
[1748358269767,1.8652195,109080.0,109070.0,0.0019]
[1748358269965,1.8652195,109080.0,109040.0,0.11844]
[1748358269966,0.2291556,109060.0,109040.0,0.11844]
[1748358270154,0.9853295,109050.0,109040.0,0.1833463]
[1748358270355,0.812,109050.0,109040.0,0.3767863]
[1748358270658,0.812,109050.0,109040.0,0.31842186]
[1748358270859,0.802,109050.0,109040.0,0.43686186]
[1748358271061,0.80138861,109050.0,109040.0,0.39872186]
[1748358271261,0.72098861,109050.0,109040.0,1.06463099]
[1748358271462,0.72098861,109050.0,109040.0,0.82716186]
[1748358271666,0.72198861,109050.0,109040.0,1.15733499]
[1748358271964,0.30211305,109050.0,109040.0,1.80713943]
[1748358272551,0.30211305,109050.0,109040.0,1.81412598]
[1748358273157,0.30211305,109050.0,109040.0,1.82818777]
[1748358273365,0.30211305,109050.0,109040.0,0.88183864]
[1748358273366,0.66291305,109050.0,109040.0,0.88183864]
[1748358273558,0.66291305,109050.0,109040.0,0.79013464]
[1748358273559,0.68291305,109050.0,109040.0,0.79013464]
[1748358274265,0.83101305,109050.0,109040.0,0.79013464]
[1748358274468,0.83101305,109050.0,109040.0,0.51013464]
[1748358274663,0.83101305,109050.0,109040.0,0.49607285]
[1748358275163,0.83101305,109050.0,109040.0,0.50049516]
[1748358275364,0.81101305,109050.0,109040.0,0.50049516]
[1748358275768,0.81101305,109050.0,109040.0,0.50053516]
[1748358276062,0.81101305,109050.0,109040.0,0.69053516]
[1748358276869,0.80207402,109050.0,109040.0,0.69053516]
[1748358278780,0.80207402,109050.0,109040.0,0.57205516]
[1748358279084,0.80207402,109050.0,109040.0,0.69053516]
[1748358279679,0.65397402,109050.0,109040.0,0.92800429]
[1748358280076,0.65397402,109050.0,109040.0,0.68853516]
[1748358280272,0.25323142,109050.0,109040.0,1.14922829]
[1748358280579,0.36093692,109060.0,109050.0,0.1833295]
[1748358280773,0.33652582,109060.0,109050.0,0.6870295]
[1748358280975,0.3608,109070.0,109060.0,0.1833127]
[1748358281274,0.5083,109080.0,109070.0,0.1832959]
[1748358281275,0.3608,109080.0,109070.0,0.1832959]
[1748358281479,0.3608,109080.0,109070.0,1.46058503]
[1748358281785,0.3608,109080.0,109070.0,1.55226503]
[1748358282174,0.3608,109080.0,109070.0,1.3881959]
[1748358282375,0.3608,109080.0,109070.0,1.62566503]
[1748358283686,0.3628,109080.0,109070.0,1.62766503]
[1748358284085,0.002,109080.0,109070.0,1.62766503]
[1748358284389,0.1832152,109120.0,109110.0,0.1832287]
[1748358284390,0.3608,109120.0,109110.0,0.1832287]
[1748358284579,0.5052,109120.0,109110.0,0.6317087]
[1748358284779,0.5052,109120.0,109110.0,0.7700087]
[1748358285283,0.432,109120.0,109110.0,0.7700087]
[1748358285784,0.43413756,109130.0,109120.0,0.1832119]
[1748358285785,0.07333756,109130.0,109120.0,0.1832119]
[1748358286089,0.43413756,109130.0,109120.0,0.9086319]
[1748358286290,0.50533756,109130.0,109120.0,0.9086319]
[1748358286489,0.68853266,109130.0,109120.0,0.13]
[1748358286677,1.35761339,109130.0,109120.0,0.1832119]
[1748358286872,1.35761339,109130.0,109120.0,0.3016919]
[1748358286873,1.03181149,109130.0,109120.0,0.3016919]
[1748358287083,0.1832287,109110.0,109100.0,0.00013756]
[1748358287288,1.47229783,109110.0,109100.0,0.18338306]
[1748358287493,1.1926,109110.0,109100.0,0.18338306]
[1748358287685,0.9026,109110.0,109100.0,0.18338306]
[1748358287882,0.9026,109110.0,109100.0,0.25378306]
[1748358288082,0.8626,109110.0,109100.0,0.32708306]
[1748358288279,0.3608,109110.0,109100.0,1.39649456]
[1748358288488,0.3748,109110.0,109100.0,1.46479456]
[1748358288787,0.3748,109110.0,109100.0,1.55645056]
[1748358288788,0.3648,109110.0,109100.0,1.55645056]
[1748358289384,0.3648,109110.0,109100.0,1.91725056]
[1748358289385,0.004,109110.0,109100.0,1.91725056]
[1748358289787,0.005,109110.0,109100.0,1.91825056]
[1748358290289,0.005,109110.0,109100.0,1.55745056]
[1748358290492,0.006,109110.0,109100.0,1.55745056]
[1748358290679,0.007,109110.0,109100.0,1.55845056]
[1748358291092,0.002,109110.0,109100.0,1.10041056]
[1748358291279,0.002,109110.0,109100.0,1.67617056]
[1748358291788,0.3608,109120.0,109110.0,0.1832288]
[1748358291977,0.00013756,109130.0,109120.0,0.183212]
[1748358292182,0.38507645,109140.0,109130.0,0.1831952]
[1748358292377,0.38507645,109140.0,109130.0,0.3468952]
[1748358293388,0.38507645,109140.0,109130.0,0.6468952]
[1748358293890,0.38707645,109140.0,109130.0,0.6478952]
[1748358294090,0.39107645,109140.0,109130.0,1.23096448]
[1748358294392,0.39107645,109140.0,109130.0,1.22996448]
[1748358294393,0.46167645,109140.0,109130.0,1.22996448]
[1748358294689,0.46067645,109140.0,109130.0,1.22996448]
[1748358294879,0.39007645,109140.0,109130.0,1.22996448]
[1748358295081,0.39007645,109140.0,109130.0,1.29806448]
[1748358295485,0.02927645,109140.0,109130.0,1.29806448]
[1748358295683,0.02627645,109140.0,109130.0,1.29906448]
[1748358296097,0.02627645,109140.0,109130.0,1.30106448]
[1748358296700,0.02627645,109140.0,109130.0,0.72598448]
[1748358296994,0.02627645,109140.0,109130.0,1.53621361]
[1748358297988,0.02627645,109140.0,109130.0,1.53573361]
[1748358298393,0.02627645,109140.0,109130.0,1.89653361]
[1748358299089,0.02627645,109140.0,109130.0,1.98816161]
[1748358299293,0.02627645,109140.0,109130.0,1.75069248]
[1748358299481,0.02627645,109140.0,109130.0,1.98816161]
[1748358299994,0.3608,109180.0,109150.0,0.0457883]
[1748358300202,0.47521115,109180.0,109170.0,0.183128]
[1748358300385,0.4323,109180.0,109170.0,0.243128]
[1748358300592,0.4323,109180.0,109170.0,0.309528]
[1748358301389,0.4323,109180.0,109160.0,2.39206869]
[1748358301390,0.1831281,109170.0,109160.0,1.13074716]
[1748358301698,0.5045,109170.0,109160.0,1.88568216]
[1748358302204,0.5045,109170.0,109160.0,1.49764216]
[1748358302595,0.5045,109170.0,109160.0,1.51109315]
[1748358302796,0.5055,109170.0,109160.0,1.51109315]
[1748358303500,0.5055,109170.0,109160.0,1.51209315]
[1748358303895,0.5055,109170.0,109160.0,1.96617315]
[1748358304701,0.5055,109170.0,109160.0,1.51209315]
[1748358305098,1.4522281,109170.0,109160.0,1.17054855]
[1748358305304,1.4522281,109170.0,109160.0,1.35369345]
[1748358305800,1.1422281,109170.0,109160.0,1.34024246]
[1748358306101,1.4522281,109170.0,109160.0,1.34024246]
[1748358306309,1.2322281,109170.0,109160.0,1.34024246]
[1748358306802,0.5955,109170.0,109160.0,1.34024246]
[1748358307008,0.95858,109170.0,109160.0,1.34024246]
[1748358307305,0.95854,109170.0,109160.0,1.42160001]
[1748358307694,0.5055,109170.0,109160.0,1.42160001]
[1748358307891,1.1414281,109170.0,109160.0,1.42160001]
[1748358308095,0.9583,109170.0,109160.0,1.42160001]
[1748358308295,1.0083,109170.0,109160.0,1.42160001]
[1748358308596,0.9583,109170.0,109160.0,1.42160001]
[1748358308998,1.1411481,109170.0,109160.0,1.42160001]
[1748358309199,0.95802,109170.0,109160.0,1.42160001]
[1748358309401,0.5055,109170.0,109160.0,1.42160001]
[1748358309599,0.6886281,109170.0,109160.0,1.49300001]
[1748358309803,0.5055,109170.0,109160.0,1.49300001]
[1748358310198,0.5055,109170.0,109160.0,1.55490001]
[1748358310505,0.6886281,109170.0,109160.0,1.55490001]
[1748358311002,0.6886281,109170.0,109160.0,1.30035511]
[1748358311203,0.98907591,109170.0,109160.0,1.34024246]
[1748358311406,1.28907591,109170.0,109160.0,1.34024246]
[1748358313104,1.05160678,109170.0,109160.0,1.34024246]
[1748358313308,1.24609723,109170.0,109160.0,0.11805756]
[1748358313508,1.28912347,109170.0,109160.0,0.30120256]
[1748358313900,1.05165434,109170.0,109160.0,0.30120256]
[1748358314098,1.50269434,109170.0,109160.0,0.30120256]
[1748358314498,1.50269434,109170.0,109160.0,0.36200256]
[1748358315108,1.50469434,109170.0,109160.0,0.36200256]
[1748358315510,1.05365434,109170.0,109160.0,0.36200256]
[1748358315710,0.86365434,109170.0,109160.0,0.37584401]
[1748358315907,0.73365444,109170.0,109160.0,0.49284401]
[1748358316398,0.77365444,109170.0,109160.0,0.49284401]
[1748358316703,0.73367427,109170.0,109160.0,0.49284401]
[1748358317211,0.73367427,109170.0,109160.0,0.43514401]
[1748358317212,1.10367427,109170.0,109160.0,0.43514401]
[1748358317707,0.73367427,109170.0,109160.0,0.43514401]
[1748358317906,1.10367427,109170.0,109160.0,0.43514401]
[1748358318206,0.73367427,109170.0,109160.0,0.49644401]
[1748358318393,0.78367427,109170.0,109160.0,0.49644401]
[1748358318597,0.9711434,109170.0,109160.0,0.42130256]
[1748358318801,1.3211434,109170.0,109160.0,0.42130256]
[1748358318996,1.3211434,109170.0,109160.0,0.00113756]
[1748358319209,1.46044382,109170.0,109160.0,0.00113756]
[1748358319723,1.46044382,109170.0,109160.0,0.18428256]
[1748358319904,1.46044382,109170.0,109160.0,0.00555987]
[1748358319905,1.41739775,109170.0,109160.0,0.00555987]
[1748358320206,1.46017461,109170.0,109160.0,0.18870487]
[1748358321110,1.40415013,109170.0,109160.0,0.18870487]
[1748358322512,0.1831618,109150.0,109140.0,0.0573]
[1748358322802,2.04000602,109150.0,109140.0,0.2404786]
[1748358323108,1.29583509,109150.0,109140.0,0.1831786]
[1748358323303,1.77215423,109150.0,109140.0,0.3033786]
[1748358323806,1.68791689,109150.0,109140.0,0.1202]
[1748358324009,1.90891689,109150.0,109140.0,0.3043786]
[1748358324412,2.14638602,109150.0,109140.0,0.3085786]
[1748358324906,2.14638602,109150.0,109140.0,0.3105786]
[1748358325797,2.14638602,109150.0,109140.0,0.003]
[1748358326011,2.23062336,109150.0,109140.0,0.003]
[1748358326210,2.24405029,109150.0,109140.0,0.003]
[1748358326407,1.95042293,109150.0,109140.0,0.003]
[1748358326604,2.1451152,109150.0,109140.0,0.003]
[1748358326804,2.13168827,109150.0,109140.0,0.003]
[1748358327006,0.1831786,109140.0,109130.0,0.00013756]
[1748358327314,1.2843309,109140.0,109130.0,0.00013756]
[1748358327708,1.32683132,109140.0,109130.0,0.00013756]
[1748358328407,1.32783132,109140.0,109130.0,0.00313756]
[1748358328802,1.32883132,109140.0,109130.0,0.00313756]
[1748358329507,1.27274815,109140.0,109130.0,0.00313756]
[1748358329710,1.27274815,109140.0,109130.0,0.24303286]
[1748358329910,0.40530042,109140.0,109130.0,0.31353286]
[1748358330307,0.58847902,109140.0,109130.0,0.31353286]
[1748358330607,0.5479786,109140.0,109130.0,0.31053286]
[1748358333000,0.8779786,109140.0,109130.0,0.23017756]
[1748358333218,1.27593499,109140.0,109130.0,0.23017756]
[1748358333407,1.23454773,109140.0,109130.0,0.23017756]
[1748358333608,1.26593278,109140.0,109130.0,0.23017756]
[1748358333809,0.94593278,109140.0,109130.0,0.23017756]
[1748358334115,1.32593278,109140.0,109130.0,0.23017756]
[1748358334317,1.71297278,109140.0,109130.0,0.11733756]
[1748358334507,1.71297278,109140.0,109130.0,0.00013756]
[1748358334721,2.16744078,109140.0,109130.0,6e-08]
[1748358335013,2.25167812,109140.0,109130.0,6e-08]
[1748358335512,2.30765377,109140.0,109130.0,6e-08]
[1748358336510,2.30721377,109140.0,109130.0,6e-08]
[1748358336710,2.26582872,109140.0,109130.0,6e-08]
[1748358337708,2.18159138,109140.0,109130.0,6e-08]
[1748358338015,2.22287502,109140.0,109130.0,6e-08]
[1748358338818,2.30711236,109140.0,109130.0,6e-08]
[1748358339517,2.30711236,109140.0,109100.0,0.0629]
[1748358339518,0.3608,109120.0,109100.0,0.0629]
[1748358339816,1.29019803,109110.0,109100.0,0.1204]
[1748358340016,1.71739803,109110.0,109100.0,0.1204]
[1748358340214,1.72167115,109110.0,109100.0,0.1204]
[1748358340815,1.72167115,109110.0,109100.0,0.1214]
[1748358341418,1.72167115,109110.0,109100.0,0.1827]
[1748358341615,1.76293437,109110.0,109100.0,0.1827]
[1748358341820,1.76293437,109110.0,109100.0,0.1847]
[1748358342240,0.1832457,109100.0,109090.0,0.00013756]
[1748358342415,1.25731483,109100.0,109090.0,0.00013756]
[1748358342809,1.25731483,109100.0,109090.0,0.05743756]
[1748358343210,0.9040457,109100.0,109090.0,0.24070006]
[1748358343410,1.58671483,109100.0,109090.0,0.05743756]
[1748358343626,1.58971483,109100.0,109090.0,0.24170006]
[1748358343823,1.70551483,109100.0,109090.0,0.05843756]
[1748358344413,1.14451483,109100.0,109090.0,0.05843756]
[1748358344624,0.6470457,109100.0,109090.0,0.24170006]
[1748358344916,0.2727,109100.0,109090.0,0.24170006]
[1748358345119,0.4559456,109100.0,109090.0,0.24170006]
[1748358345317,0.63576526,109120.0,109090.0,1.52356259]
[1748358345521,0.66576526,109120.0,109110.0,0.1832289]
[1748358345730,0.66576526,109120.0,109110.0,0.11288]
[1748358345921,0.66576526,109120.0,109110.0,0.17298]
[1748358346128,0.61995916,109120.0,109110.0,0.36037594]
[1748358346429,0.59495916,109120.0,109110.0,0.36037594]
[1748358346626,0.59495916,109120.0,109110.0,0.3562089]
[1748358347426,0.54915506,109120.0,109110.0,0.3562089]
[1748358348220,0.55415506,109120.0,109110.0,0.3572089]
[1748358348628,0.55415506,109120.0,109110.0,0.4742089]
[1748358348831,0.00813756,109120.0,109110.0,1.70247803]
[1748358349026,0.3608,109140.0,109130.0,0.1831953]
[1748358349336,0.36927,109150.0,109140.0,0.1831786]
[1748358349626,0.5524318,109150.0,109140.0,0.3631786]
[1748358349828,0.00847,109150.0,109140.0,0.3631786]
[1748358350129,0.00847,109150.0,109140.0,0.3601786]
[1748358350726,0.00947,109150.0,109140.0,0.7219786]
[1748358350924,0.00947,109150.0,109140.0,0.7119786]
[1748358351131,0.00947,109150.0,109140.0,0.77944773]
[1748358351334,0.01947,109150.0,109140.0,1.43122773]
[1748358351632,0.00947,109150.0,109140.0,1.5437586]
[1748358352032,0.00947,109150.0,109140.0,2.03122773]
[1748358352325,0.00151301,109160.0,109150.0,0.1831618]
[1748358352529,0.00151301,109160.0,109150.0,1.49304293]
[1748358352720,0.00151301,109160.0,109150.0,1.61084293]
[1748358353136,0.99008891,109190.0,109180.0,0.1831114]
[1748358353137,0.70684508,109190.0,109180.0,0.1831114]
[1748358353323,0.79107138,109190.0,109180.0,0.2959514]
[1748358353528,0.60797508,109190.0,109180.0,0.4137514]
[1748358353838,0.47797508,109190.0,109180.0,0.4137514]
[1748358354432,0.47897508,109190.0,109180.0,0.4137514]
[1748358355328,0.00237508,109190.0,109180.0,1.58626053]
[1748358355528,0.10013756,109200.0,109190.0,0.1830947]
[1748358355719,0.10013756,109200.0,109190.0,0.6503947]
[1748358356132,0.10013756,109200.0,109190.0,0.54786383]
[1748358356332,0.3608,109220.0,109190.0,1.60410233]
[1748358356535,0.50273734,109230.0,109220.0,0.1830444]
[1748358356728,0.22423734,109230.0,109220.0,0.7400844]
[1748358357032,0.3608,109240.0,109230.0,0.1830276]
[1748358357240,0.4758,109250.0,109230.0,0.4864]
[1748358357422,0.65893166,109250.0,109240.0,0.3538909]
[1748358357626,0.70893166,109250.0,109240.0,0.4100909]
[1748358358238,0.52593756,109250.0,109240.0,0.4100909]
[1748358358433,0.46963756,109250.0,109240.0,0.4100909]
[1748358358637,0.42363756,109250.0,109240.0,0.4100909]
[1748358358933,0.00413756,109250.0,109240.0,1.82256003]
[1748358359131,0.00413756,109250.0,109240.0,1.91409602]
[1748358359329,0.00413756,109250.0,109240.0,1.73109602]
[1748358359723,0.36493756,109250.0,109240.0,0.57794689]
[1748358359922,0.55793166,109250.0,109240.0,0.8512509]
[1748358360141,0.43603756,109250.0,109240.0,0.8552509]
[1748358360345,0.36593756,109250.0,109240.0,0.8552509]
[1748358360634,0.36593756,109250.0,109240.0,0.3204109]
[1748358360827,0.55893166,109250.0,109240.0,0.4110509]
[1748358361026,0.67663166,109250.0,109240.0,0.4110509]
[1748358361539,0.67263166,109250.0,109240.0,0.4110509]
[1748358361742,0.67263166,109250.0,109240.0,0.4130509]
[1748358361930,0.67263166,109250.0,109240.0,0.3024109]
[1748358362240,0.59863756,109250.0,109240.0,0.3508509]
[1748358362429,0.78163166,109250.0,109240.0,0.3508509]
[1748358362637,0.78163166,109250.0,109240.0,0.4089509]
[1748358362939,0.78163166,109250.0,109240.0,0.4099509]
[1748358363241,0.66163166,109250.0,109240.0,0.4099509]
[1748358363434,0.77163166,109250.0,109240.0,0.4099509]
[1748358363639,0.77163166,109250.0,109240.0,0.4089509]
[1748358364937,0.77363166,109250.0,109240.0,0.4089509]
[1748358366037,0.59063756,109250.0,109240.0,0.4089509]
[1748358366236,0.48063756,109250.0,109240.0,0.4089509]
[1748358366433,0.36293756,109250.0,109240.0,0.4089509]
[1748358368041,0.66203166,109250.0,109240.0,0.3508509]
[1748358369045,0.47903756,109250.0,109240.0,0.3508509]
[1748358369247,0.47903756,109250.0,109240.0,0.4067509]
[1748358369550,0.66203166,109250.0,109240.0,0.4067509]
[1748358370047,0.66203166,109250.0,109240.0,0.3508509]
[1748358370446,0.66203166,109250.0,109240.0,0.003]
[1748358370746,1.19950079,109250.0,109240.0,0.2966109]
[1748358370950,1.19750079,109250.0,109240.0,0.2966109]
[1748358371150,1.19850079,109250.0,109240.0,0.2966109]
[1748358371444,0.60023166,109250.0,109240.0,0.2966109]
[1748358371635,0.96203166,109250.0,109240.0,0.2966109]
[1748358372650,0.96203166,109250.0,109240.0,0.2946109]
[1748358373950,0.96203166,109250.0,109240.0,0.1840109]
[1748358374249,0.96203166,109250.0,109240.0,0.2945709]
[1748358374250,1.25680079,109250.0,109240.0,0.2945709]
[1748358374440,1.01933166,109250.0,109240.0,0.2945709]
[1748358374641,1.25680079,109250.0,109240.0,0.2945709]
[1748358374950,1.01933166,109250.0,109240.0,0.2945709]
[1748358376041,0.62633756,109250.0,109240.0,0.2945709]
[1748358376547,0.47903756,109250.0,109240.0,0.99654003]
[1748358376938,0.47903756,109250.0,109240.0,0.4690709]
[1748358377652,0.47903756,109250.0,109240.0,0.4700709]
[1748358377653,0.11623756,109250.0,109240.0,0.4700709]
[1748358378259,0.11623756,109250.0,109240.0,0.8308709]
[1748358378747,0.11623756,109250.0,109240.0,0.8328709]
[1748358379642,0.11623756,109250.0,109240.0,1.07034003]
[1748358380852,0.00013756,109250.0,109240.0,1.07034003]
[1748358381055,6e-08,109250.0,109240.0,1.38034003]
[1748358382052,6e-08,109250.0,109240.0,1.72187602]
[1748358382352,6e-08,109250.0,109240.0,1.47187602]
[1748358383144,0.3608,109280.0,109240.0,2.01967602]
[1748358383350,0.47088912,109290.0,109280.0,0.182944]
[1748358383351,0.1118,109290.0,109280.0,0.182944]
[1748358383549,0.1118,109290.0,109280.0,0.747184]
[1748358383754,0.4826,109290.0,109280.0,0.236344]
[1748358383953,0.1218,109290.0,109280.0,0.346904]
[1748358384153,0.4826,109290.0,109280.0,0.346904]
[1748358384349,0.6555272,109290.0,109280.0,0.182944]
[1748358384552,1.0326272,109290.0,109280.0,0.293504]
[1748358384750,1.0626272,109290.0,109280.0,0.293504]
[1748358384946,0.8426272,109290.0,109280.0,0.293504]
[1748358385151,0.88334593,109290.0,109280.0,0.293504]
[1748358385654,1.17003505,109290.0,109280.0,0.293504]
[1748358385952,1.17003505,109290.0,109280.0,0.294504]
[1748358386748,0.98710785,109290.0,109280.0,0.294504]
[1748358387058,0.20920785,109290.0,109280.0,1.34645313]
[1748358387351,0.09740785,109290.0,109280.0,1.91075713]
[1748358387755,0.05668912,109290.0,109280.0,1.81925313]
[1748358387957,0.05668912,109290.0,109280.0,1.331784]
[1748358388145,0.11248912,109290.0,109280.0,1.331784]
[1748358388350,0.05668912,109290.0,109280.0,1.65925313]
[1748358389254,1e-07,109290.0,109280.0,1.76434802]
[1748358389644,1e-07,109290.0,109280.0,1.43537489]
[1748358389956,1e-07,109290.0,109280.0,0.88113489]
[1748358390146,0.1222001,109290.0,109280.0,0.99161489]
[1748358390346,0.1222001,109290.0,109280.0,1.43517489]
[1748358391562,0.1122001,109290.0,109280.0,1.47835489]
[1748358391957,0.1122001,109290.0,109280.0,1.47935489]
[1748358392157,0.1122,109290.0,109280.0,1.48035489]
[1748358392654,0.10009022,109300.0,109290.0,0.1829272]
[1748358392862,0.15349022,109300.0,109290.0,0.7206272]
[1748358393159,0.15349022,109300.0,109290.0,1.0506272]
[1748358394650,0.20809022,109300.0,109290.0,1.2741072]
[1748358395253,0.56889022,109300.0,109290.0,0.3498272]
[1748358395461,0.56889022,109300.0,109290.0,0.6803672]
[1748358395659,0.56889022,109300.0,109290.0,0.2369272]
[1748358395854,0.56889022,109300.0,109290.0,0.7908472]
[1748358396463,0.56889022,109300.0,109290.0,0.8008472]
[1748358396655,0.56889022,109300.0,109290.0,0.8590472]
[1748358398758,0.58889022,109300.0,109290.0,0.7908472]
[1748358400062,0.58889022,109300.0,109290.0,0.7907672]
[1748358400561,0.77180072,109300.0,109290.0,0.1829272]
[1748358400861,1.41906985,109300.0,109290.0,0.2933672]
[1748358401166,1.84205477,109300.0,109290.0,0.1829272]
[1748358401370,1.15865477,109300.0,109290.0,0.2933672]
[1748358401564,0.73827514,109300.0,109290.0,0.2933672]
[1748358401867,0.73827212,109300.0,109290.0,0.2933672]
[1748358402963,0.73827212,109300.0,109290.0,0.3573672]
[1748358403967,0.69869022,109300.0,109290.0,0.3573672]
[1748358404273,0.62869022,109300.0,109290.0,0.3573672]
[1748358404464,0.62869022,109300.0,109290.0,0.4178672]
[1748358405669,0.12999103,109330.0,109290.0,0.4178672]
[1748358405670,0.4169308,109330.0,109320.0,0.182877]
[1748358405858,0.4228,109330.0,109320.0,0.293317]
[1748358406059,0.4428,109330.0,109320.0,0.182877]
[1748358406253,0.9891603,109330.0,109320.0,0.182877]
[1748358406561,1.26627621,109330.0,109320.0,0.182877]
[1748358406958,1.32657621,109330.0,109320.0,0.182877]
[1748358407563,1.09210708,109330.0,109320.0,0.182877]
[1748358407756,1.09610708,109330.0,109320.0,0.182877]
[1748358408162,1.53938708,109330.0,109320.0,0.182877]
[1748358408670,1.53738708,109330.0,109320.0,0.182877]
[1748358408963,0.1828769,109320.0,109310.0,0.32018376]
[1748358409157,1.26816444,109320.0,109310.0,0.32018376]
[1748358410058,1.27016444,109320.0,109310.0,0.32018376]
[1748358410867,1.27116444,109320.0,109310.0,0.32018376]
[1748358411575,1.27116444,109320.0,109310.0,0.22873996]
[1748358412278,1.27121657,109320.0,109310.0,0.22873996]
[1748358413271,1.03374744,109320.0,109310.0,0.22873996]
[1748358413464,1.27121657,109320.0,109310.0,0.22873996]
[1748358413663,1.71445657,109320.0,109310.0,0.22873996]
[1748358414059,0.85087054,109320.0,109310.0,0.22873996]
[1748358414268,0.59087054,109320.0,109310.0,0.29243996]
[1748358414572,0.52087054,109320.0,109310.0,0.36403996]
[1748358415458,0.70373864,109320.0,109310.0,0.36403996]
[1748358415668,0.52086174,109320.0,109310.0,0.36403996]
[1748358415965,0.4816,109320.0,109310.0,0.36403996]
[1748358416159,0.70374709,109320.0,109310.0,0.36403996]
[1748358418259,0.52087019,109320.0,109310.0,0.36403996]
[1748358418862,0.52086218,109320.0,109310.0,0.36403996]
[1748358419268,0.4816,109320.0,109310.0,0.36403996]
[1748358420272,0.003,109320.0,109310.0,0.36403996]
[1748358420568,0.003,109320.0,109310.0,0.73403996]
[1748358420771,0.003,109320.0,109310.0,0.44403996]
[1748358421171,0.003,109320.0,109310.0,0.48720996]
[1748358422062,0.003,109320.0,109310.0,0.72467909]
[1748358422370,0.003,109320.0,109310.0,1.08547909]
[1748358422576,0.003,109320.0,109310.0,1.20981704]
[1748358422877,0.003,109320.0,109310.0,1.39270034]
[1748358423077,0.42627346,109340.0,109330.0,0.1828602]
[1748358423078,0.06547346,109340.0,109330.0,0.1828602]
[1748358423266,0.12697346,109340.0,109330.0,0.3031402]
[1748358423468,0.12697346,109340.0,109330.0,0.4220402]
[1748358423668,0.00137346,109340.0,109330.0,0.4220402]
[1748358424366,0.00137346,109340.0,109330.0,0.4230402]
[1748358424970,0.60791686,109340.0,109330.0,0.3027602]
[1748358425281,0.49767346,109340.0,109330.0,0.4130402]
[1748358425668,0.68051686,109340.0,109330.0,0.4130402]
[1748358425877,0.49767346,109340.0,109330.0,0.4130402]
[1748358426078,0.68051696,109340.0,109330.0,0.4130402]
[1748358426271,1.05051696,109340.0,109330.0,0.3521402]
[1748358426472,0.71956369,109340.0,109330.0,0.2418602]
[1748358426774,1.02956369,109340.0,109330.0,0.2941402]
[1748358427367,1.02956369,109340.0,109330.0,0.1838602]
[1748358427869,0.99051696,109340.0,109330.0,0.1838602]
[1748358428274,0.56767346,109340.0,109330.0,0.3075602]
[1748358428877,0.75051696,109340.0,109330.0,0.3075602]
[1748358429078,0.75051696,109340.0,109330.0,0.3071093]
[1748358429477,0.56767346,109340.0,109330.0,0.3071093]
[1748358429876,0.56767346,109340.0,109330.0,0.3171093]
[1748358430069,0.56767346,109340.0,109330.0,0.4273893]
[1748358432575,0.06427346,109340.0,109330.0,0.4273893]
[1748358433473,0.00137346,109340.0,109330.0,1.39183956]
[1748358433682,0.00013756,109350.0,109340.0,0.1828435]
[1748358433977,0.00013756,109350.0,109340.0,1.1649635]
[1748358434386,0.00013756,109350.0,109340.0,1.1749635]
[1748358434871,0.00013756,109350.0,109340.0,1.18866279]
[1748358435177,0.00013756,109350.0,109340.0,1.42613192]
[1748358435378,0.00137321,109360.0,109350.0,0.1828268]
[1748358435586,0.00137321,109360.0,109350.0,0.4637068]
[1748358436084,0.00137321,109360.0,109350.0,0.8245068]
[1748358436284,0.00137321,109360.0,109350.0,0.4637068]
[1748358436475,0.00137321,109360.0,109350.0,0.8245068]
[1748358436676,0.00237321,109360.0,109350.0,0.4637068]
[1748358436977,0.06657321,109360.0,109350.0,0.4637068]
[1748358438083,0.00337321,109360.0,109350.0,0.7745068]
[1748358438285,0.00337321,109360.0,109350.0,1.0845068]
[1748358438691,0.00337321,109360.0,109350.0,1.32197593]
[1748358439081,1e-08,109360.0,109350.0,1.32197593]
[1748358439279,1e-08,109360.0,109350.0,1.0845068]
[1748358439478,1e-08,109360.0,109350.0,1.32197593]
[1748358439677,1e-08,109360.0,109350.0,1.76473593]
[1748358439890,1e-08,109360.0,109350.0,1.80788593]
[1748358440390,1e-08,109360.0,109350.0,1.80888593]
[1748358440584,1e-08,109360.0,109350.0,1.5713768]
[1748358440780,0.4775,109370.0,109360.0,0.18281]
[1748358440974,0.4775,109370.0,109360.0,0.39441]
[1748358441792,0.4202,109370.0,109360.0,0.39441]
[1748358442087,0.0573,109380.0,109370.0,0.1827933]
[1748358442281,0.117,109380.0,109370.0,0.4101333]
[1748358442676,0.4778,109380.0,109370.0,0.4101333]
[1748358443280,0.4778,109380.0,109370.0,0.41392162]
[1748358444086,0.4798,109380.0,109370.0,0.41392162]
[1748358445189,0.4798,109380.0,109370.0,0.40352517]
[1748358445394,0.4798,109380.0,109370.0,0.34093685]
[1748358445395,0.6725766,109380.0,109370.0,0.34093685]
[1748358445988,0.6715766,109380.0,109370.0,0.34093685]
[1748358446187,0.6715766,109380.0,109370.0,0.34105685]
[1748358448285,0.4888,109380.0,109370.0,0.34105685]
[1748358448481,0.6715766,109380.0,109370.0,0.34105685]
[1748358448693,0.4888,109380.0,109370.0,0.34105685]
[1748358448898,0.6715766,109380.0,109370.0,0.34105685]
[1748358449394,0.4888,109380.0,109370.0,0.34105685]
[1748358450192,0.4888,109380.0,109370.0,0.40355685]